bitfinex-derivatives/quotes_ETHF0:USTF0_20250917
["timestamp","ask_amount","ask_price","bid_price","bid_amount"]
[1758132679252,1.5256,4485.5,4485.2,0.40114]
[1758132679452,3.2078,4485.7,4485.6,1.6089]
[1758132679752,3.2078,4485.7,4485.1,1.38588]
[1758132679753,3.2078,4485.7,4485.3,0.40113]
[1758132679955,3.2078,4486.8,4486.2,0.40105]
[1758132680143,0.022,4489.1,4485.1,3.2078]
[1758132680144,1.5256,4486.0,4485.1,3.2078]
[1758132680347,1.5256,4486.0,4485.4,0.40112]
[1758132680549,3.2078,4486.1,4485.6,0.4011]
[1758132680746,1.5256,4486.7,4485.6,0.4011]
[1758132680947,3.2078,4486.1,4485.1,3.2078]
[1758132681145,1.5256,4486.0,4485.2,0.383]
[1758132681652,3.2078,4486.1,4485.4,0.40112]
[1758132681853,1.5256,4486.4,4485.2,0.383]
[1758132682255,1.5256,4486.4,4485.5,0.40111]
[1758132682556,1.5256,4486.4,4485.7,0.4011]
[1758132682855,1.5256,4486.4,4485.1,3.60895]
[1758132683055,3.2078,4486.2,4485.6,0.382]
[1758132683362,1.5256,4486.1,4485.1,3.2078]
[1758132683552,3.2078,4486.2,4485.7,0.382]
[1758132683757,1.5256,4486.1,4485.7,0.382]
[1758132684249,1.5256,4486.6,4485.7,3.2078]
[1758132684455,1.5256,4486.4,4485.8,0.382]
[1758132684656,1.5256,4486.4,4485.7,3.2078]
[1758132684852,1.5256,4486.4,4485.9,0.382]
[1758132685348,1.5256,4486.4,4485.2,3.2078]
[1758132685651,1.5256,4485.8,4485.2,3.5888]
[1758132685852,1.5256,4485.8,4485.2,0.381]
[1758132686054,1.5256,4485.8,4484.7,3.2078]
[1758132686253,3.2078,4485.4,4484.8,0.381]
[1758132686557,1.5256,4485.3,4484.7,0.381]
[1758132687049,3.2078,4485.4,4484.7,0.381]
[1758132687652,3.2078,4485.4,4484.1,4.8167]
[1758132687954,1.5256,4485.3,4484.7,0.0207]
[1758132688156,0.6266,4484.7,4483.5,32.117]
[1758132688464,1.5256,4483.7,4483.6,0.381]
[1758132688752,1.5256,4483.6,4482.8,3.2078]
[1758132689062,1.5256,4483.6,4482.9,0.38]
[1758132689454,3.2078,4483.7,4482.8,3.5878]
[1758132689653,3.2078,4483.7,4482.8,3.2078]
[1758132689856,3.2078,4483.7,4482.8,3.5878]
[1758132690056,1.5256,4483.6,4482.9,0.38]
[1758132690450,1.5256,4483.6,4482.8,3.2078]
[1758132690659,1.5256,4483.6,4482.9,0.38]
[1758132690849,3.2078,4483.7,4482.9,0.38]
[1758132691053,3.2078,4483.7,4482.9,1.9889]
[1758132691252,3.2078,4484.2,4484.1,1.6089]
[1758132691449,3.2078,4485.9,4484.1,3.9951]
[1758132691650,0.6266,4488.0,4485.0,1.0029]
[1758132691651,3.2078,4486.4,4485.0,1.0029]
[1758132691959,1.5256,4487.1,4485.4,3.2078]
[1758132692155,3.2078,4486.6,4486.1,0.40106]
[1758132692352,1.5256,4486.5,4486.2,0.38]
[1758132692660,0.6266,4486.5,4486.3,0.38]
[1758132692853,1.5256,4486.4,4486.3,0.38]
[1758132693362,1.5256,4487.0,4486.5,0.40102]
[1758132693563,3.2078,4487.7,4486.5,3.2078]
[1758132693860,3.2078,4488.3,4487.0,4.8167]
[1758132694169,3.2078,4488.3,4487.1,0.379]
[1758132694463,1.5256,4488.2,4487.8,0.40092]
[1758132694662,1.5256,4488.1,4487.9,0.379]
[1758132694857,1.5256,4488.1,4488.0,0.379]
[1758132695164,1.5256,4488.1,4487.3,0.019]
[1758132695356,1.5256,4488.1,4487.4,0.379]
[1758132695553,5.36,4488.3,4487.4,0.379]
[1758132695755,1.5256,4488.2,4487.3,0.41996]
[1758132695956,1.5256,4487.7,4487.3,0.019]
[1758132696156,1.5256,4487.5,4487.3,0.019]
[1758132696356,1.5256,4487.7,4487.3,0.019]
[1758132696658,0.6266,4487.4,4486.4,0.378]
[1758132696963,1.5799,4486.7,4486.4,0.378]
[1758132697161,1.5799,4486.9,4486.4,0.378]
[1758132697360,3.2078,4487.0,4486.6,0.40101]
[1758132697858,3.2078,4487.0,4486.9,1.6148]
[1758132698060,3.2078,4488.0,4487.5,0.40093]
[1758132698359,1.5799,4487.9,4487.6,0.378]
[1758132698757,3.2078,4488.0,4487.8,0.40091]
[1758132698959,3.2078,4488.5,4488.3,0.40087]
[1758132699161,3.2078,4488.5,4488.3,0.378]
[1758132699862,4.7877,4488.5,4487.7,0.40092]
[1758132700064,4.7877,4488.5,4487.9,0.4009]
[1758132700257,4.7877,4488.5,4487.8,0.77791]
[1758132700760,1.5799,4488.2,4487.2,3.60876]
[1758132701058,1.5799,4488.2,4487.3,0.77795]
[1758132701263,1.5799,4488.2,4487.3,0.377]
[1758132701460,1.5799,4488.2,4487.5,0.40094]
[1758132701660,1.5799,4488.2,4487.3,0.77796]
[1758132701861,1.5799,4488.2,4487.3,0.377]
[1758132702158,1.5799,4488.2,4486.7,3.2078]
[1758132702358,1.5799,4487.2,4485.8,3.2078]
[1758132702558,1.5799,4487.1,4486.3,0.377]
[1758132702762,3.8351,4486.5,4485.8,3.2078]
[1758132702962,3.8351,4486.5,4484.4,32.097]
[1758132702963,3.8351,4486.5,4485.1,3.2078]
[1758132703259,1.5799,4485.5,4484.5,3.2078]
[1758132703656,1.5799,4485.5,4484.4,32.473]
[1758132704065,3.2078,4485.8,4484.5,1.6148]
[1758132704261,3.2078,4485.8,4484.4,32.473]
[1758132704562,1.5799,4485.6,4484.7,3.2078]
[1758132704859,1.5799,4485.6,4484.8,0.376]
[1758132705164,3.2078,4485.8,4485.3,0.40113]
[1758132705361,3.2078,4485.8,4485.7,1.6148]
[1758132705556,3.2078,4485.8,4485.0,0.40116]
[1758132705769,4.7877,4485.8,4485.1,0.376]
[1758132706065,4.7877,4485.8,4485.1,0.40115]
[1758132706266,4.7877,4485.8,4484.8,1.6148]
[1758132706466,4.7877,4485.8,4484.9,0.376]
[1758132706668,1.5799,4485.7,4484.7,3.2078]
[1758132706967,1.5799,4485.1,4484.8,0.376]
[1758132707167,1.5799,4485.2,4484.8,0.376]
[1758132707559,0.376,4485.9,4484.8,0.376]
[1758132707560,1.9559,4485.7,4484.8,0.376]
[1758132707864,3.2078,4485.8,4484.8,0.376]
[1758132708065,3.2078,4485.8,4485.5,0.40111]
[1758132708369,3.2078,4485.8,4485.6,1.9898]
[1758132708555,3.2078,4485.8,4485.6,2.3909]
[1758132708760,3.2078,4485.8,4485.7,1.6148]
[1758132709165,3.2078,4485.8,4485.6,2.3909]
[1758132709367,3.2078,4485.8,4485.7,1.6148]
[1758132709664,3.2078,4485.8,4485.6,0.7761]
[1758132709864,3.2078,4485.8,4485.7,1.6148]
[1758132710259,3.43074,4486.4,4485.7,5.6148]
[1758132710464,3.43074,4486.4,4485.7,1.6148]
[1758132710761,0.22294,4486.4,4486.2,0.40104]
[1758132710960,0.22294,4486.4,4486.3,1.9898]
[1758132711662,3.43074,4486.4,4486.3,1.9898]
[1758132711864,1.5799,4486.3,4486.1,0.374]
[1758132712060,3.2078,4486.2,4485.8,0.374]
[1758132712562,1.5799,4485.9,4484.8,1.6148]
[1758132712763,3.2078,4485.5,4484.4,32.49821]
[1758132712959,4.7877,4485.5,4484.5,3.2078]
[1758132713161,1.5799,4485.5,4484.6,0.374]
[1758132713459,3.2078,4486.0,4485.1,1.6148]
[1758132713762,3.2078,4486.0,4485.8,0.40108]
[1758132713967,3.2078,4486.0,4485.9,1.9888]
[1758132714461,3.2078,4486.0,4485.9,5.9888]
[1758132714867,3.2078,4486.0,4485.9,0.374]
[1758132715058,3.2078,4486.0,4485.5,0.40111]
[1758132715258,1.5799,4485.9,4485.0,3.2078]
[1758132715456,1.5799,4485.9,4484.3,3.2078]
[1758132715662,3.2078,4485.3,4484.4,0.373]
[1758132715863,1.5799,4485.3,4484.7,0.40118]
[1758132716166,1.5799,4485.7,4484.6,0.40119]
[1758132716361,1.5799,4485.7,4484.8,0.373]
[1758132716566,1.5799,4485.7,4484.4,1.6148]
[1758132716866,1.5799,4484.9,4483.3,0.40131]
[1758132717066,3.2078,4484.4,4482.5,3.2078]
[1758132717367,3.2078,4483.5,4482.6,0.373]
[1758132717563,1.5799,4483.9,4482.6,0.77437]
[1758132717762,1.5799,4483.9,4482.7,2.01616]
[1758132718162,1.5799,4483.9,4482.9,0.40134]
[1758132718375,1.5799,4483.9,4483.0,0.373]
[1758132718768,1.5799,4483.9,4483.0,0.40133]
[1758132718970,3.2078,4484.0,4483.2,1.5666]
[1758132719266,3.2078,4484.0,4483.3,0.372]
[1758132719763,1.4877,4483.9,4483.1,3.2078]
[1758132719968,1.4877,4483.9,4483.2,0.372]
[1758132720364,4.6955,4484.0,4483.0,3.2078]
[1758132720574,1.4877,4483.9,4483.0,3.2078]
[1758132720867,1.4877,4483.9,4483.1,0.372]
[1758132721167,3.2078,4484.0,4483.1,0.372]
[1758132721768,4.6955,4484.5,4483.2,2.78986]
[1758132722073,3.2078,4484.5,4483.3,1.5666]
[1758132722267,3.2078,4484.5,4483.7,3.2078]
[1758132722465,3.2078,4484.5,4483.8,1.9386]
[1758132722665,3.2078,4484.5,4484.2,1.5666]
[1758132722861,3.2078,4485.1,4484.4,1.5666]
[1758132723063,3.2078,4485.9,4484.5,3.2078]
[1758132723273,3.2078,4485.9,4484.4,1.5666]
[1758132723274,1.4877,4486.1,4485.0,4.7744]
[1758132723567,1.4877,4486.3,4485.0,4.7744]
[1758132723868,0.6107,4485.6,4485.0,3.2078]
[1758132724067,3.2078,4485.1,4484.0,3.2078]
[1758132724267,1.4877,4484.4,4484.1,0.371]
[1758132724470,1.4877,4483.9,4483.8,0.371]
[1758132724664,3.2078,4484.5,4483.8,0.371]
[1758132724861,0.6107,4484.0,4482.4,3.2078]
[1758132725073,1.4877,4483.9,4482.5,0.371]
[1758132725270,1.4877,4483.6,4482.5,0.371]
[1758132725466,1.4877,4483.6,4482.4,3.2078]
[1758132725668,1.4877,4483.6,4482.5,0.371]
[1758132726371,0.6107,4484.0,4482.6,1.5666]
[1758132726571,1.4877,4483.6,4482.5,0.371]
[1758132726875,1.4877,4483.6,4482.9,3.2078]
[1758132727065,1.4877,4483.6,4483.0,0.37]
[1758132727266,1.4877,4483.6,4482.9,3.2078]
[1758132727471,3.2078,4484.2,4483.0,0.37]
[1758132727671,1.5116,4485.0,4483.3,0.40131]
[1758132727976,1.5116,4485.0,4483.1,1.5929]
[1758132727977,3.2078,4485.1,4483.8,0.40127]
[1758132728176,1.5116,4485.0,4484.1,3.2078]
[1758132728379,1.5116,4485.0,4484.2,3.5778]
[1758132728584,1.5116,4485.7,4484.3,1.5929]
[1758132728774,0.6314,4485.6,4484.9,3.2078]
[1758132728977,1.5116,4485.5,4485.0,0.37]
[1758132729177,1.5116,4485.5,4484.9,3.2078]
[1758132729178,1.5116,4485.5,4485.1,0.37]
[1758132729377,0.6314,4485.6,4485.1,0.37]
[1758132729673,1.5116,4485.5,4485.1,0.37]
[1758132729877,0.6314,4485.6,4485.1,0.37]
[1758132730371,3.2078,4485.4,4484.4,3.2078]
[1758132730574,0.6314,4484.8,4483.2,32.11]
[1758132730775,3.2078,4483.5,4482.9,0.369]
[1758132731079,3.2078,4483.5,4482.9,1.9619]
[1758132731279,3.2078,4483.5,4482.9,0.369]
[1758132731581,3.2078,4483.0,4482.4,0.5978]
[1758132731783,3.2078,4483.0,4482.5,0.369]
[1758132731974,3.2078,4483.0,4482.6,1.5929]
[1758132732376,3.2078,4483.0,4482.5,0.369]
[1758132732580,3.2078,4483.0,4482.4,2.1907]
[1758132732880,3.2078,4482.6,4482.5,0.369]
[1758132733080,3.2078,4482.6,4482.5,1.9619]
[1758132733384,3.2078,4483.4,4482.7,0.40136]
[1758132733579,4.7194,4483.4,4482.8,0.369]
[1758132733770,4.7194,4483.4,4482.5,2.59636]
[1758132733771,3.2078,4483.4,4482.5,2.59636]
[1758132733970,3.2078,4484.0,4483.3,1.5929]
[1758132734383,3.2078,4484.0,4483.4,0.368]
[1758132734570,3.2078,4484.0,4483.5,0.368]
[1758132734571,1.5116,4483.9,4483.5,0.368]
[1758132734876,3.2078,4484.0,4483.5,0.368]
[1758132735076,3.2078,4484.0,4483.5,1.9609]
[1758132735274,3.2078,4484.0,4483.6,1.5929]
[1758132735477,3.2078,4484.0,4483.5,0.368]
[1758132735677,4.7194,4485.2,4484.2,0.40123]
[1758132735978,3.2078,4485.2,4484.4,1.5929]
[1758132736175,3.2078,4485.2,4484.4,1.99411]
[1758132736378,3.2078,4485.2,4484.5,0.368]
[1758132736575,1.5116,4485.1,4484.6,0.368]
[1758132736777,3.2078,4484.7,4484.1,0.368]
[1758132737273,1.5116,4484.6,4483.1,3.60913]
[1758132737478,1.5116,4484.6,4483.2,0.368]
[1758132737674,3.2078,4484.1,4483.1,3.2078]
[1758132737981,0.6314,4484.8,4482.9,33.7069]
[1758132737982,1.5116,4483.4,4482.9,32.114]
[1758132738175,0.6314,4484.0,4482.9,32.114]
[1758132738176,4.7194,4483.0,4482.9,32.114]
[1758132738377,4.7194,4483.0,4482.9,32.481]
[1758132738886,3.2078,4483.0,4482.9,34.0739]
[1758132739079,3.2078,4483.0,4482.9,32.114]
[1758132739583,4.7194,4483.0,4482.9,32.481]
[1758132739784,3.2078,4483.0,4482.9,32.481]
[1758132740379,4.7194,4483.7,4482.9,34.0739]
[1758132741087,1.5116,4483.1,4483.0,0.367]
[1758132741480,3.2078,4483.2,4483.0,1.9599]
[1758132741682,3.2078,4483.7,4483.0,0.367]
[1758132741982,3.2078,4484.3,4483.3,1.5929]
[1758132742188,3.2078,4483.8,4483.4,1.9589]
[1758132742483,4.7194,4483.8,4483.4,0.366]
[1758132742682,1.5116,4483.6,4483.4,0.366]
[1758132742880,3.2078,4483.8,4483.1,3.2078]
[1758132743281,1.5116,4483.6,4482.9,32.114]
[1758132743487,1.5116,4483.2,4482.9,32.114]
[1758132743686,1.5116,4483.2,4481.9,1.6123]
[1758132743984,1.5116,4482.2,4481.9,0.0194]
[1758132744186,1.5116,4482.0,4479.6,3.2078]
[1758132744386,4.7194,4480.3,4479.6,3.2078]
[1758132744589,3.2078,4480.8,4479.7,0.366]
[1758132745083,1.5116,4479.9,4479.3,32.116]
[1758132745278,3.2078,4480.0,4479.7,1.5929]
[1758132745484,1.5116,4480.4,4479.6,0.365]
[1758132745684,1.51763772,4479.9,4478.5,3.2078]
[1758132745880,3.2078,4479.3,4478.6,0.365]
[1758132746083,1.5116,4479.8,4478.6,0.365]
[1758132746279,3.2078,4479.9,4478.5,3.2078]
[1758132746587,0.6314,4478.4,4477.3,3.2078]
[1758132746785,1.5116,4477.9,4477.4,0.365]
[1758132746986,3.2078,4478.1,4477.5,0.365]
[1758132747186,3.2078,4478.9,4477.9,3.2078]
[1758132747380,1.5116,4479.1,4478.1,1.5929]
[1758132747577,1.5116,4480.0,4478.5,1.5929]
[1758132747782,1.5116,4480.0,4479.0,1.5929]
[1758132747977,0.00646134,4479.9,4479.1,0.365]
[1758132748183,3.2078,4480.0,4479.3,3.2078]
[1758132748396,3.2078,4480.0,4479.0,1.5929]
[1758132748692,3.2078,4480.0,4478.7,3.2078]
[1758132748693,1.5116,4479.3,4478.8,0.365]
[1758132748986,1.5116,4478.8,4478.4,0.365]
[1758132749187,4.7194,4479.6,4478.4,0.365]
[1758132749389,1.5116,4479.1,4478.4,0.364]
[1758132749582,1.5116,4479.1,4476.8,0.5978]
[1758132749583,2.143,4478.4,4476.3,0.364]
[1758132749783,1.5116,4477.8,4477.1,3.2078]
[1758132750087,3.2078,4478.1,4477.1,3.2078]
[1758132750290,1.5116,4478.3,4477.1,3.60967]
[1758132750495,3.2078,4478.8,4477.7,3.2078]
[1758132750785,1.51860979,4478.7,4477.5,3.2078]
[1758132751093,1.51860979,4478.7,4477.6,0.364]
[1758132751290,3.2078,4479.3,4478.1,3.2078]
[1758132751487,3.2078,4479.3,4478.2,0.364]
[1758132751687,0.00683525,4478.8,4478.2,0.364]
[1758132751995,3.2078,4479.3,4478.7,1.5929]
[1758132752290,0.00658596,4479.2,4478.8,0.364]
[1758132752589,1.5116,4479.1,4478.3,0.364]
[1758132752788,1.5116,4479.1,4478.0,3.2078]
[1758132752990,1.5116,4479.1,4477.7,1.5929]
[1758132753186,0.00668567,4479.0,4477.9,1.5929]
[1758132753392,0.00668567,4479.0,4478.1,3.2078]
[1758132753589,1.5116,4478.6,4477.9,1.5929]
[1758132753789,1.5116,4478.6,4478.0,0.363]
[1758132753989,0.00668567,4479.1,4478.0,0.363]
[1758132754185,3.2078,4478.8,4478.0,0.363]
[1758132754386,3.2078,4478.8,4477.5,0.5978]
[1758132754387,3.2078,4478.1,4477.3,1.5929]
[1758132754596,1.5116,4477.4,4476.7,3.2078]
[1758132754789,1.5116,4477.4,4476.6,0.363]
[1758132754994,0.00735894,4477.3,4476.6,0.363]
[1758132755489,3.2078,4476.7,4475.4,1.5929]
[1758132755690,0.00735894,4477.3,4474.3,3.2078]
[1758132755691,1.5116,4475.9,4474.3,3.2078]
[1758132755995,3.2078,4476.2,4475.5,0.1787]
[1758132756197,0.00840706,4475.8,4475.5,0.1787]
[1758132756494,1.5116,4475.6,4475.5,0.1787]
[1758132756689,40.8,4477.5,4475.5,0.1787]
[1758132756690,3.2078,4478.0,4475.8,1.5929]
[1758132756895,1.5986,4478.4,4476.7,1.5863]
[1758132757086,1.5986,4478.4,4477.0,3.2078]
[1758132757087,0.00840706,4477.7,4477.0,3.2078]
[1758132757292,1.5986,4477.7,4476.8,0.363]
[1758132757496,1.5986,4477.7,4476.7,1.5863]
[1758132757696,3.2078,4478.0,4476.9,0.362]
[1758132757892,0.00840706,4477.6,4477.5,3.2078]
[1758132758091,3.2078,4478.5,4477.3,0.362]
[1758132758092,0.00840706,4477.5,4477.3,0.362]
[1758132758394,3.2078,4479.0,4477.6,1.5863]
[1758132758597,3.2078,4479.0,4478.0,1.5863]
[1758132758898,1.5986,4479.6,4478.5,1.5863]
[1758132759098,1.5986,4479.6,4478.4,3.2078]
[1758132759099,3.2078,4480.1,4479.1,1.5863]
[1758132759291,3.2078,4480.7,4479.4,1.5863]
[1758132759490,1.5986,4480.0,4478.6,4.7941]
[1758132759793,1.5986,4480.0,4478.6,3.2078]
[1758132759994,0.5834,4480.2,4478.7,0.362]
[1758132759995,1.5986,4479.3,4478.7,0.362]
[1758132760198,3.2078,4479.6,4478.7,0.362]
[1758132760390,0.00840706,4479.2,4478.7,0.362]
[1758132760597,0.00840706,4479.2,4478.8,1.5863]
[1758132760792,1.5986,4479.5,4478.4,3.2078]
[1758132760987,3.2078,4479.6,4478.6,1.5863]
[1758132761188,0.00840706,4479.0,4478.4,3.2078]
[1758132761394,1.5986,4479.5,4478.4,3.2078]
[1758132761695,0.00840706,4478.6,4478.3,0.362]
[1758132761896,0.00840706,4478.5,4478.4,0.362]
[1758132762095,3.2078,4479.1,4478.4,3.5688]
[1758132762291,0.00840706,4478.7,4478.4,3.5688]
[1758132762599,1.5986,4478.7,4478.5,0.361]
[1758132762795,1.60700706,4478.2,4478.1,0.0223]
[1758132763103,1.60700706,4478.2,4477.6,0.361]
[1758132763406,0.00840706,4477.0,4476.5,1.5863]
[1758132763696,0.5834,4478.4,4475.5,0.1787]
[1758132763697,1.5986,4476.9,4475.5,0.1787]
[1758132763998,0.00840706,4476.4,4475.6,5.1551]
[1758132764294,3.2078,4477.2,4476.1,3.2078]
[1758132764595,0.361,4477.3,4475.5,0.5397]
[1758132764596,1.5986,4475.8,4475.5,0.5397]
[1758132764900,1.60700706,4475.6,4475.5,0.1787]
[1758132765295,5.82204,4475.6,4474.1,0.01394405]
[1758132765599,1.5986,4474.9,4474.4,0.00840706]
[1758132765903,3.2078,4474.5,4474.1,3.699e-05]
[1758132766093,1.5986,4474.4,4474.1,3.699e-05]
[1758132766296,3.2078,4474.5,4474.1,3.699e-05]
[1758132766797,4.8064,4474.2,4474.1,3.699e-05]
[1758132767402,1.5986,4475.0,4474.1,0.00844405]
[1758132767598,1.5986,4475.0,4474.1,3.699e-05]
[1758132767800,0.36,4475.6,4474.7,3.2078]
[1758132768101,3.2078,4475.3,4474.2,3.2078]
[1758132768404,3.2078,4475.3,4474.7,0.1787]
[1758132768693,3.2078,4475.3,4475.2,0.00840706]
[1758132768896,1.5986,4475.2,4474.7,0.1787]
[1758132769208,4.8064,4474.8,4474.7,0.1787]
[1758132769500,1.5986,4474.7,4473.6,0.36]
[1758132769690,3.2078,4474.0,4473.7,1.5863]
[1758132769893,3.2078,4474.0,4473.6,0.36]
[1758132770191,3.2078,4474.0,4473.9,1.59470706]
[1758132770597,3.2078,4474.7,4473.9,5.5863]
[1758132770796,3.2078,4474.7,4474.0,0.36]
[1758132770997,3.2078,4474.7,4474.6,0.00840706]
[1758132771200,3.2078,4475.2,4474.6,1.59470706]
[1758132771403,3.2078,4475.2,4474.6,1.5863]
[1758132771599,1.5986,4475.1,4474.1,0.359]
[1758132771806,1.5986,4475.1,4474.8,0.00840706]
[1758132772299,3.2078,4475.2,4474.8,0.00840706]
[1758132772500,3.2078,4475.2,4473.6,3.2078]
[1758132772706,1.5986,4475.1,4474.5,0.00840706]
[1758132774208,3.2078,4474.6,4473.6,3.2078]
[1758132774403,1.5986,4474.5,4473.6,3.2078]
[1758132774605,3.2078,4474.1,4473.2,1.5863]
[1758132774907,1.5986,4474.0,4473.8,0.00840706]
[1758132775307,1.5986,4474.0,4473.9,0.00840706]
[1758132775503,3.2078,4474.1,4473.8,0.00840706]
[1758132776015,1.5986,4474.0,4473.2,0.359]
[1758132776303,3.2078,4474.1,4473.1,3.2078]
[1758132776304,4.8064,4474.1,4473.1,3.2078]
[1758132776508,5.1644,4474.1,4473.1,3.2078]
[1758132776698,5.1644,4474.1,4473.4,0.00840706]
[1758132777710,3.2078,4473.6,4473.4,0.00840706]
[1758132777903,1.5986,4473.5,4472.6,3.2078]
[1758132778207,3.2078,4473.6,4473.2,1.49240706]
[1758132778397,3.2078,4474.3,4473.5,0.00840706]
[1758132778601,3.2078,4474.3,4473.8,0.00840706]
[1758132778797,1.5378,4474.2,4473.5,0.00840706]
[1758132779001,0.358,4474.1,4473.5,0.00840706]
[1758132779403,1.5378,4474.0,4473.3,3.2078]
[1758132779603,1.5378,4474.0,4473.4,0.00840706]
[1758132779805,3.2078,4473.8,4473.4,0.00840706]
[1758132780402,3.2078,4474.3,4472.7,3.2078]
[1758132780603,1.5378,4474.2,4473.4,0.00840706]
[1758132780805,1.5378,4473.5,4473.4,7.06e-06]
[1758132781009,1.5378,4473.5,4472.7,0.357]
[1758132781201,1.5378,4473.5,4471.9,1.484]
[1758132781509,1.5378,4473.1,4471.8,3.2078]
[1758132781701,1.5378,4473.1,4471.8,3.61014]
[1758132781905,1.5378,4473.1,4472.4,3.2078]
[1758132782310,0.624,4472.8,4471.9,0.357]
[1758132782609,1.5378,4472.7,4472.0,3.2078]
[1758132782807,4.7456,4473.3,4472.0,3.2078]
[1758132783002,5.1026,4473.3,4472.1,1.484]
[1758132783308,3.2078,4474.3,4473.3,0.4022]
[1758132783510,1.5378,4474.2,4473.1,0.357]
[1758132783913,1.5378,4474.2,4473.2,4.6918]
[1758132784108,3.2078,4474.3,4473.3,1.484]
[1758132784410,3.2078,4475.4,4474.3,1.484]
[1758132784608,3.2078,4475.4,4474.5,1.484]
[1758132784807,3.2078,4475.4,4474.8,3.2078]
[1758132785106,0.624,4475.2,4474.8,3.2078]
[1758132785302,72.951,4476.4,4474.8,3.2078]
[1758132785303,3.2078,4475.9,4474.8,3.2078]
[1758132785510,1.5378,4476.6,4475.7,3.2078]
[1758132785713,4.7456,4476.7,4475.5,1.484]
[1758132785919,1.5378,4476.1,4475.1,0.356]
[1758132786112,3.2078,4476.9,4475.6,3.2078]
[1758132786408,3.2078,4477.4,4476.3,1.484]
[1758132786709,3.2078,4477.4,4475.2,0.8483]
[1758132786710,1.5378,4476.7,4475.6,1.484]
[1758132786907,3.2078,4476.8,4475.9,3.2078]
[1758132787103,3.2078,4476.8,4476.0,1.4933]
[1758132787609,3.2078,4476.1,4474.8,1.4933]
[1758132787805,1.8414,4476.0,4474.8,1.4933]
[1758132788214,0.356,4476.0,4474.8,1.4933]
[1758132788611,3.2078,4476.1,4474.8,1.4933]
[1758132788815,3.2078,4476.1,4475.3,1.4933]
[1758132789316,1.4854,4475.1,4474.4,0.0954]
[1758132789520,1.4854,4475.0,4474.4,0.0954]
[1758132790117,1.4854,4474.5,4473.0,0.355]
[1758132790317,1.4854,4473.1,4472.2,3.2078]
[1758132790714,3.2078,4473.2,4472.2,3.2078]
[1758132790909,1.4854,4473.1,4472.2,3.2078]
[1758132791114,3.2078,4473.2,4472.2,3.2078]
[1758132791324,1.8404,4473.1,4472.2,3.2078]
[1758132791617,1.4854,4473.0,4472.2,3.2078]
[1758132791920,1.4854,4472.6,4471.7,4.7011]
[1758132792417,3.2078,4472.1,4471.0,3.2078]
[1758132792610,1.4854,4471.9,4471.0,3.2078]
[1758132792812,1.4854,4471.9,4471.1,0.166]
[1758132793012,1.4854,4471.5,4471.1,0.166]
[1758132793210,1.4854,4471.5,4470.4,3.2078]
[1758132793211,0.6396,4471.2,4470.4,3.2078]
[1758132793409,3.2078,4471.0,4469.7,3.2078]
[1758132793616,3.2078,4470.0,4469.1,0.02237612]
[1758132793815,1.4854,4472.6,4469.6,0.3241]
[1758132794123,1.4854,4472.6,4472.0,3.2078]
[1758132794419,1.4854,4472.0,4469.5,2.237]
[1758132794618,3.8474,4472.1,4469.1,0.02237612]
[1758132794619,1.4854,4470.2,4469.1,0.02237612]
[1758132794817,1.4854,4468.4,4467.5,0.249]
[1758132795009,1.4854,4468.4,4467.7,3.2078]
[1758132795421,1.4854,4468.4,4468.2,3.2078]
[1758132795621,2.125,4469.4,4468.2,3.2078]
[1758132795924,1.4854,4470.7,4469.0,3.5543]
[1758132796119,4.2014,4471.2,4469.3,3.2078]
[1758132796420,1.4854,4471.1,4470.4,3.2078]
[1758132796615,0.354,4471.0,4470.4,3.2078]
[1758132796812,1.4854,4471.1,4470.4,3.2078]
[1758132797012,0.354,4471.1,4470.4,3.2078]
[1758132797215,1.4854,4471.7,4470.4,3.2078]
[1758132797621,0.354,4471.6,4470.4,3.2078]
[1758132797818,1.4854,4471.2,4469.9,3.2078]
[1758132798021,3.2078,4470.4,4469.4,3.2078]
[1758132798321,1.4854,4469.8,4468.7,3.5608]
[1758132798526,3.2078,4469.7,4468.7,3.5608]
[1758132798820,1.4854,4469.4,4468.2,3.2078]
[1758132799029,1.4854,4468.9,4468.2,3.2078]
[1758132799417,3.2078,4468.4,4467.2,3.2078]
[1758132799618,1.4854,4468.2,4467.2,3.2078]
[1758132799822,1.4854,4469.1,4467.7,3.2078]
[1758132800124,3.2078,4467.8,4466.2,3.2078]
[1758132800321,1.4854,4467.6,4466.9,3.2078]
[1758132800823,1.4854,4467.6,4466.0,0.353]
[1758132800824,0.6396,4468.0,4466.7,0.353]
[1758132801021,1.4854,4467.9,4467.5,3.2078]
[1758132801214,0.9926,4468.0,4467.5,3.2078]
[1758132801416,1.4854,4468.3,4467.0,3.2078]
[1758132801627,0.6396,4468.0,4467.0,3.2078]
[1758132801926,1.8384,4467.9,4466.9,3.2078]
[1758132802128,1.8384,4467.9,4466.1,0.353]
[1758132802129,2.125,4467.0,4466.4,3.2078]
[1758132802425,2.478,4467.0,4466.6,3.2078]
[1758132802624,0.6396,4468.0,4466.6,3.2078]
[1758132802827,1.4854,4467.9,4466.6,3.2078]
[1758132803023,0.353,4467.8,4467.3,3.2078]